[Event "FIDE Womens World Cup 2021"]
[Site "Sochi"]
[Date "2021.07.15"]
[Round "2.1"]
[White "Danielian, Elina"]
[Black "Bulmaga, Irina"]
[Result "1-0"]
[ECO "D37"]
[WhiteElo "2407"]
[BlackElo "2413"]
[Annotator "NA"]
[PlyCount "87"]
[EventDate "2021.07.12"]
[EventType "k.o."]
[EventCountry "RUS"]
[SourceTitle "playchess.com"]
[Source "ChessBase"]
[SourceQuality "1"]
[TimeControl "40/5400+30:1800+30"]

1. d4 {[%emt 0:00:04]} Nf6 {[%emt 0:00:07]} 2. c4 {[%emt 0:00:05]} e6 {[%emt 0:00:07]} 3. Nc3 {[%emt 0:00:29]} d5 {[%emt 0:00:09]} 4. Nf3 {[%emt 0:00:18]} Be7 {[%emt 0:00:07]} 5. e3 {[%emt 0:02:12]} O-O {[%emt 0:00:44]} 6. Bd3 {[%emt 0:01:16]} dxc4 {[%emt 0:05:36]} 7. Bxc4 {[%emt 0:00:05]} a6 {[%emt 0:00:27]} 8. Bd3 {[%emt 0:01:35]} c5 {[%emt 0:03:06]} 9. O-O {[%emt 0:01:41]} Nc6 {[%emt 0:00:51]} 10. a3 {[%emt 0:08:47]} cxd4 {[%emt 0:09:06]} 11. exd4 {[%emt 0:00:05]} b5 {[%emt 0:04:33]} 12. Bc2 {[%emt 0:04:29]} Bb7 {[%emt 0:02:27]} 13. Qd3 {[%emt 0:03:53]} g6 {[%emt 0:05:48]} 14. Bh6 {[%emt 0:02:32]} Re8 {[%emt 0:00:42]} 15. Rfe1 {[%emt 0:03:57]} Rc8 {[%emt 0:06:28]} 16. Rac1 {[%emt 0:24:15]} Rc7 {[%emt 0:13:55]} 17. Bb1 {[%emt 0:05:55]} Rd7 {[%emt 0:06:36]} 18. Rcd1 {[%emt 0:01:15]} b4 {[%emt 0:06:28]} 19. Ne2 {[%emt 0:05:38]} bxa3 {[%emt 0:05:25]} 20. bxa3 {[%emt 0:00:04]} Qa5 {[%emt 0:02:19]} 21. Bg5 {[%emt 0:18:07]} Red8 {[%emt 0:11:55]} 22. Qb3 {[%emt 0:04:23]} Nd5 {[%emt 0:05:47]} 23. h4 {[%emt 0:03:04]} Qb5 {[%emt 0:03:40]} 24. Qa2 {[%emt 0:01:15]} Bxg5 {[%emt 0:01:35]} 25. hxg5 {[%emt 0:00:09]} Qa5 {[%emt 0:01:25]} 26. Be4 {[%emt 0:01:12]} Nde7 {[%emt 0:01:03]} 27. Ng3 {[%emt 0:02:50]} Ba8 {[%emt 0:01:44]} 28. Qa1 {[%emt 0:02:45]} Nf5 {[%emt 0:01:19]} 29. Bxf5 {[%emt 0:01:10]} exf5 {[%emt 0:00:16]} 30. Ne2 {[%emt 0:00:47]} Re7 {[%emt 0:00:56]} 31. Nf4 {[%emt 0:00:24]} Re4 {[%emt 0:00:06]} 32. d5 {[%emt 0:00:45]} Rxf4 {[%emt 0:00:54]} 33. dxc6 {[%emt 0:00:03]} Re4 {[%emt 0:00:45]} 34. Qf6 {[%emt 0:00:49]} Rde8 {[%emt 0:00:29]} 35. Rxe4 {[%emt 0:00:37]} fxe4 {[%emt 0:00:02]} 36. Rd7 {[%emt 0:00:34]} Rf8 {[%emt 0:00:39]} 37. Ne5 {[%emt 0:00:37]} e3 {[%emt 0:00:40]} 38. Ng4 {[%emt 0:00:40]} exf2+ {[%emt 0:00:21]} 39. Kxf2 {[%emt 0:00:32]} Qf5+ {[%emt 0:00:46]} 40. Kg3 {[%emt 0:00:35]} Qxf6 {[%emt 0:00:30]} 41. Nxf6+ {[%emt 0:30:02]} Kg7 {[%emt 0:00:40]} 42. c7 {[%emt 0:00:00]} Bb7 {[%emt 0:06:16]} 43. Rd8 {[%emt 0:00:00]} a5 {[%emt 0:00:43]} 44. Nxh7 {[%emt 0:00:00]} 1-0

[Event "FIDE Womens World Cup 2021"]
[Site "Sochi"]
[Date "2021.07.15"]
[Round "2.1"]
[White "Unuk, Laura"]
[Black "Mammadzada, Gunay"]
[Result "1/2-1/2"]
[ECO "D10"]
[WhiteElo "2407"]
[BlackElo "2460"]
[Annotator "ChessBase"]
[PlyCount "62"]
[EventDate "2021.07.12"]
[EventType "k.o."]
[EventCountry "RUS"]
[SourceTitle "playchess.com"]
[Source "ChessBase"]
[SourceQuality "1"]
[TimeControl "40/5400+30:1800+30"]

1. d4 {[%emt 0:00:12]} d5 {[%emt 0:02:46]} 2. c4 {[%emt 0:00:23]} c6 {[%emt 0:00:13]} 3. cxd5 {[%emt 0:00:50]} cxd5 {[%emt 0:00:04]} 4. Nc3 {[%emt 0:00:07]} Nc6 {[%emt 0:01:41]} 5. Bf4 {[%emt 0:00:37]} Nf6 {[%emt 0:00:24]} 6. e3 {[%emt 0:00:43]} Bg4 {[%emt 0:01:38]} 7. Qb3 {[%emt 0:00:48]} Na5 {[%emt 0:00:54]} 8. Qa4+ {[%emt 0:00:48]} Bd7 {[%emt 0:00:11]} 9. Qd1 {[%emt 0:00:15]} e6 {[%emt 0:02:27]} 10. Bd3 {[%emt 0:04:49]} Rc8 {[%emt 0:01:44]} 11. Nf3 {[%emt 0:00:59]} Nc4 {[%emt 0:02:14]} 12. Qe2 {[%emt 0:04:54]} Bb4 {[%emt 0:01:32]} 13. Rc1 {[%emt 0:00:33]} Ne4 {[%emt 0:06:00]} 14. O-O {[%emt 0:01:27]} Bxc3 {[%emt 0:06:48]} 15. Bxe4 {[%emt 0:01:13]} dxe4 {[%emt 0:24:53]} 16. Ng5 {[%emt 0:00:46]} Ba5 {[%emt 0:10:59]} 17. Rxc4 {[%emt 0:30:39]} Rxc4 {[%emt 0:00:35]} 18. Qxc4 {[%emt 0:00:22]} Bc6 {[%emt 0:01:03]} 19. Qc5 {[%emt 0:20:38]} h6 {[%emt 0:04:01]} 20. Nh3 {[%emt 0:00:54]} Bb6 {[%emt 0:01:02]} 21. Qa3 {[%emt 0:01:51]} a6 {[%emt 0:08:07]} 22. Rc1 {[%emt 0:01:34]} f6 {[%emt 0:01:31]} 23. Bd6 {[%emt 0:03:15]} g5 {[%emt 0:04:19]} 24. Kh1 {[%emt 0:02:46]} h5 {[%emt 0:01:04]} 25. Ng1 {[%emt 0:03:33]} h4 {[%emt 0:00:16]} 26. Qb4 {[%emt 0:06:34]} Kf7 {[%emt 0:01:52]} 27. Be7 {[%emt 0:02:27]} Ba5 {[%emt 0:09:54]} 28. Qa3 {[%emt 0:03:06]} Qc7 {[%emt 0:00:32]} 29. Bd6 {[%emt 0:00:40]} Qd8 {[%emt 0:01:36]} 30. Be7 {[%emt 0:00:41]} Qc7 {[%emt 0:04:00]} 31. Bd6 {[%emt 0:03:05]} Qd8 {[%emt 0:00:05]} 1/2-1/2

[Event "FIDE Womens World Cup 2021"]
[Site "Sochi"]
[Date "2021.07.15"]
[Round "2.1"]
[White "Socko, Monika"]
[Black "Cramling, Pia"]
[Result "1/2-1/2"]
[ECO "D70"]
[WhiteElo "2393"]
[BlackElo "2459"]
[Annotator "ChessBase"]
[PlyCount "74"]
[EventDate "2021.07.12"]
[EventType "k.o."]
[EventCountry "RUS"]
[SourceTitle "playchess.com"]
[Source "ChessBase"]
[SourceQuality "1"]
[TimeControl "40/5400+30:1800+30"]

1. d4 {[%emt 0:00:05]} d5 {[%emt 0:00:14]} 2. c4 {[%emt 0:00:04]} c6 {[%emt 0:00:10]} 3. Nf3 {[%emt 0:00:03]} Nf6 {[%emt 0:00:12]} 4. Nbd2 {[%emt 0:00:27]} Bf5 {[%emt 0:01:57]} 5. g3 {[%emt 0:00:07]} e6 {[%emt 0:00:59]} 6. Bg2 {[%emt 0:00:05]} h6 {[%emt 0:00:31]} 7. Ne5 {[%emt 0:05:20]} Nbd7 {[%emt 0:05:51]} 8. Nxd7 {[%emt 0:00:41]} Qxd7 {[%emt 0:00:47]} 9. O-O {[%emt 0:00:24]} Be7 {[%emt 0:01:08]} 10. b3 {[%emt 0:01:29]} O-O {[%emt 0:01:39]} 11. Bb2 {[%emt 0:00:09]} Rfd8 {[%emt 0:12:52]} 12. Rc1 {[%emt 0:08:10]} a5 {[%emt 0:04:09]} 13. a3 {[%emt 0:11:23]} b5 {[%emt 0:16:35]} 14. c5 {[%emt 0:08:06]} Qa7 {[%emt 0:03:52]} 15. Qe1 {[%emt 0:02:31]} Bg6 {[%emt 0:02:30]} 16. Kh1 {[%emt 0:03:13]} Re8 {[%emt 0:03:22]} 17. f3 {[%emt 0:06:12]} Bf8 {[%emt 0:10:11]} 18. b4 {[%emt 0:14:03]} Nd7 {[%emt 0:04:41]} 19. Qf2 {[%emt 0:05:14]} Qc7 {[%emt 0:05:00]} 20. e4 {[%emt 0:03:10]} axb4 {[%emt 0:00:49]} 21. axb4 {[%emt 0:00:43]} Ra2 {[%emt 0:00:07]} 22. Bc3 {[%emt 0:00:34]} Rea8 {[%emt 0:02:20]} 23. Qe3 {[%emt 0:04:29]} R8a3 {[%emt 0:01:31]} 24. Ra1 {[%emt 0:02:59]} Rxa1 {[%emt 0:02:19]} 25. Rxa1 {[%emt 0:00:02]} Qa7 {[%emt 0:01:41]} 26. Rxa3 {[%emt 0:01:51]} Qxa3 {[%emt 0:00:04]} 27. e5 {[%emt 0:00:27]} Nb8 {[%emt 0:03:43]} 28. Nf1 {[%emt 0:01:09]} Na6 {[%emt 0:00:14]} 29. Qe1 {[%emt 0:00:52]} Be7 {[%emt 0:01:59]} 30. Ne3 {[%emt 0:01:48]} Bg5 {[%emt 0:02:04]} 31. f4 {[%emt 0:01:34]} Be7 {[%emt 0:00:07]} 32. h3 {[%emt 0:04:06]} Bd3 {[%emt 0:00:46]} 33. Qd2 {[%emt 0:01:53]} Bb1 {[%emt 0:00:18]} 34. Kh2 {[%emt 0:01:10]} Bd8 {[%emt 0:04:19]} 35. Bf3 {[%emt 0:00:49]} Be7 {[%emt 0:00:29]} 36. Bg2 {[%emt 0:01:37]} Bd8 {[%emt 0:00:12]} 37. Bf3 {[%emt 0:00:29]} Be7 {[%emt 0:00:06]} 1/2-1/2

[Event "FIDE Womens World Cup 2021"]
[Site "Sochi"]
[Date "2021.07.15"]
[Round "2.1"]
[White "Kulkarni Bhakti"]
[Black "Pogonina, Natalija"]
[Result "1/2-1/2"]
[ECO "E01"]
[WhiteElo "2391"]
[BlackElo "2469"]
[Annotator "ChessBase"]
[PlyCount "80"]
[EventDate "2021.07.12"]
[EventType "k.o."]
[EventCountry "RUS"]
[SourceTitle "playchess.com"]
[Source "ChessBase"]
[SourceQuality "1"]
[TimeControl "40/5400+30:1800+30"]

1. d4 {[%emt 0:00:19]} Nf6 {[%emt 0:00:06]} 2. c4 {[%emt 0:00:30]} e6 {[%emt 0:00:05]} 3. g3 {[%emt 0:01:23]} d5 {[%emt 0:02:24]} 4. Bg2 {[%emt 0:00:46]} Bb4+ {[%emt 0:01:14]} 5. Nd2 {[%emt 0:00:28]} O-O {[%emt 0:03:28]} 6. Ngf3 {[%emt 0:01:21]} b6 {[%emt 0:00:44]} 7. O-O {[%emt 0:00:49]} Bb7 {[%emt 0:00:21]} 8. a3 {[%emt 0:01:32]} Be7 {[%emt 0:08:32]} 9. cxd5 {[%emt 0:03:16]} exd5 {[%emt 0:00:25]} 10. b4 {[%emt 0:01:04]} a5 {[%emt 0:01:10]} 11. b5 {[%emt 0:00:29]} c6 {[%emt 0:00:15]} 12. Qa4 {[%emt 0:00:44]} cxb5 {[%emt 0:15:21]} 13. Qxb5 {[%emt 0:00:04]} Ba6 {[%emt 0:00:12]} 14. Qb2 {[%emt 0:00:22]} Nc6 {[%emt 0:06:17]} 15. Re1 {[%emt 0:04:50]} b5 {[%emt 0:10:28]} 16. Ne5 {[%emt 0:06:22]} Rc8 {[%emt 0:07:35]} 17. Ndf3 {[%emt 0:28:41]} Nxe5 {[%emt 0:19:13]} 18. dxe5 {[%emt 0:24:50]} Ne4 {[%emt 0:00:11]} 19. Nd4 {[%emt 0:00:55]} b4 {[%emt 0:03:46]} 20. Nf5 {[%emt 0:07:40]} Bc4 {[%emt 0:10:20]} 21. Be3 {[%emt 0:05:51]} bxa3 {[%emt 0:04:58]} 22. Nxe7+ {[%emt 0:00:50]} Qxe7 {[%emt 0:00:03]} 23. Rxa3 {[%emt 0:01:56]} Rb8 {[%emt 0:00:23]} 24. Qa1 {[%emt 0:00:16]} Rb5 {[%emt 0:00:48]} 25. Bxe4 {[%emt 0:05:22]} dxe4 {[%emt 0:00:09]} 26. Rxa5 {[%emt 0:00:14]} Rxa5 {[%emt 0:03:51]} 27. Qxa5 {[%emt 0:00:02]} Qd7 {[%emt 0:00:55]} 28. Qb4 {[%emt 0:01:16]} Qd5 {[%emt 0:00:41]} 29. Bg5 {[%emt 0:01:47]} h6 {[%emt 0:00:30]} 30. Rc1 {[%emt 0:00:11]} Bb5 {[%emt 0:00:33]} 31. Rb1 {[%emt 0:00:48]} Bc6 {[%emt 0:00:29]} 32. Be7 {[%emt 0:00:52]} e3 {[%emt 0:00:32]} 33. f3 {[%emt 0:00:13]} Rc8 {[%emt 0:00:26]} 34. Qd6 {[%emt 0:00:49]} Qa2 {[%emt 0:00:28]} 35. Qd3 {[%emt 0:00:27]} Bxf3 {[%emt 0:00:26]} 36. exf3 {[%emt 0:00:33]} Qf2+ {[%emt 0:00:04]} 37. Kh1 {[%emt 0:00:03]} Qxf3+ {[%emt 0:00:22]} 38. Kg1 {[%emt 0:00:01]} Qf2+ {[%emt 0:00:07]} 39. Kh1 {[%emt 0:00:04]} Qf3+ {[%emt 0:01:23]} 40. Kg1 {[%emt 0:00:07]} Qf2+ {[%emt 0:00:24]} 1/2-1/2

[Event "FIDE Womens World Cup 2021"]
[Site "Sochi"]
[Date "2021.07.15"]
[Round "2.1"]
[White "Garifullina, Leya"]
[Black "Girya, Olga"]
[Result "1/2-1/2"]
[ECO "C77"]
[WhiteElo "2390"]
[BlackElo "2448"]
[Annotator "NA"]
[PlyCount "95"]
[EventDate "2021.07.12"]
[EventType "k.o."]
[EventCountry "RUS"]
[SourceTitle "playchess.com"]
[Source "ChessBase"]
[SourceQuality "1"]
[TimeControl "40/5400+30:1800+30"]

1. e4 {[%emt 0:00:12]} e5 {[%emt 0:00:06]} 2. Nf3 {[%emt 0:00:12]} Nc6 {[%emt 0:00:09]} 3. Bb5 {[%emt 0:00:14]} a6 {[%emt 0:00:34]} 4. Ba4 {[%emt 0:00:09]} Nf6 {[%emt 0:00:10]} 5. d3 {[%emt 0:00:51]} Bc5 {[%emt 0:00:20]} 6. Bxc6 {[%emt 0:00:16]} dxc6 {[%emt 0:00:10]} 7. Nbd2 {[%emt 0:00:17]} Be6 {[%emt 0:01:07]} 8. O-O {[%emt 0:00:32]} Nd7 {[%emt 0:01:17]} 9. b3 {[%emt 0:00:48]} Qf6 {[%emt 0:26:32]} 10. Bb2 {[%emt 0:06:19]} O-O-O {[%emt 0:02:14]} 11. Bc3 {[%emt 0:06:58]} g5 {[%emt 0:06:41]} 12. b4 {[%emt 0:03:55]} Ba7 {[%emt 0:13:53]} 13. Qb1 {[%emt 0:09:17]} g4 {[%emt 0:09:24]} 14. Nxe5 {[%emt 0:11:58]} Rhg8 {[%emt 0:00:18]} 15. Qb2 {[%emt 0:08:42]} Qg5 {[%emt 0:00:25]} 16. g3 {[%emt 0:22:20]} Nxe5 {[%emt 0:01:35]} 17. Bxe5 {[%emt 0:00:06]} Qxd2 {[%emt 0:00:44]} 18. Bf4 {[%emt 0:00:08]} Qe2 {[%emt 0:01:45]} 19. Rae1 {[%emt 0:00:58]} Qf3 {[%emt 0:11:39]} 20. Qc1 {[%emt 0:06:17]} f5 {[%emt 0:02:02]} 21. Re3 {[%emt 0:00:10]} Bxe3 {[%emt 0:00:56]} 22. fxe3 {[%emt 0:00:05]} fxe4 {[%emt 0:02:15]} 23. Rxf3 {[%emt 0:00:06]} gxf3 {[%emt 0:00:57]} 24. d4 {[%emt 0:02:43]} Bc4 {[%emt 0:01:30]} 25. Kf2 {[%emt 0:02:05]} Rd5 {[%emt 0:01:41]} 26. a3 {[%emt 0:01:33]} Rh5 {[%emt 0:01:28]} 27. Qg1 {[%emt 0:00:50]} Rg4 {[%emt 0:02:11]} 28. a4 {[%emt 0:04:36]} b6 {[%emt 0:01:44]} 29. Be5 {[%emt 0:02:45]} Kb7 {[%emt 0:01:18]} 30. a5 {[%emt 0:00:14]} bxa5 {[%emt 0:03:28]} 31. bxa5 {[%emt 0:00:06]} Kc8 {[%emt 0:00:39]} 32. h4 {[%emt 0:01:18]} Rhxh4 {[%emt 0:06:22]} 33. gxh4 {[%emt 0:00:07]} Rxg1 {[%emt 0:00:03]} 34. Kxg1 {[%emt 0:00:03]} h5 {[%emt 0:00:10]} 35. Kf2 {[%emt 0:00:06]} Kd7 {[%emt 0:00:11]} 36. Bf4 {[%emt 0:00:08]} Be2 {[%emt 0:00:45]} 37. c3 {[%emt 0:00:18]} Bc4 {[%emt 0:00:04]} 38. Bg3 {[%emt 0:00:09]} Bd3 {[%emt 0:00:13]} 39. Bf4 {[%emt 0:00:05]} c5 {[%emt 0:00:50]} 40. dxc5 {[%emt 0:00:30]} c6 {[%emt 0:00:07]} 41. Bg5 {[%emt 0:30:26]} Ke6 {[%emt 0:30:04]} 42. Bd8 {[%emt 0:00:14]} Kd5 {[%emt 0:00:03]} 43. Bb6 {[%emt 0:00:05]} Kc4 {[%emt 0:00:02]} 44. Ba7 {[%emt 0:00:08]} Kxc3 {[%emt 0:00:05]} 45. Bb6 {[%emt 0:00:04]} Bb5 {[%emt 0:00:33]} 46. Ba7 {[%emt 0:00:33]} Kb4 {[%emt 0:01:24]} 47. Bb6 {[%emt 0:00:05]} Bd3 {[%emt 0:01:27]} 48. Ke1 {[%emt 0:00:32]} 1/2-1/2

[Event "FIDE Womens World Cup 2021"]
[Site "Sochi"]
[Date "2021.07.15"]
[Round "2.1"]
[White "Tsolakidou, Stavroula"]
[Black "Batsiashvili, Nino"]
[Result "1/2-1/2"]
[ECO "D30"]
[WhiteElo "2389"]
[BlackElo "2487"]
[Annotator "ChessBase"]
[PlyCount "63"]
[EventDate "2021.07.12"]
[EventType "k.o."]
[EventCountry "RUS"]
[SourceTitle "playchess.com"]
[Source "ChessBase"]
[SourceQuality "1"]
[TimeControl "40/5400+30:1800+30"]

1. d4 {[%emt 0:00:03]} d5 {[%emt 0:00:04]} 2. c4 {[%emt 0:00:06]} e6 {[%emt 0:00:03]} 3. Nf3 {[%emt 0:00:05]} Nf6 {[%emt 0:00:11]} 4. g3 {[%emt 0:00:08]} Bb4+ {[%emt 0:00:11]} 5. Nc3 {[%emt 0:01:51]} dxc4 {[%emt 0:01:35]} 6. Bg2 {[%emt 0:01:00]} O-O {[%emt 0:02:42]} 7. O-O {[%emt 0:00:06]} Nc6 {[%emt 0:00:09]} 8. a3 {[%emt 0:05:47]} Be7 {[%emt 0:01:08]} 9. e4 {[%emt 0:01:01]} Na5 {[%emt 0:00:45]} 10. Be3 {[%emt 0:00:46]} Nb3 {[%emt 0:00:35]} 11. Rb1 {[%emt 0:00:36]} c5 {[%emt 0:24:08]} 12. dxc5 {[%emt 0:08:18]} Bxc5 {[%emt 0:07:45]} 13. Bxc5 {[%emt 0:30:18]} Nxc5 {[%emt 0:00:07]} 14. e5 {[%emt 0:11:05]} Nd5 {[%emt 0:20:41]} 15. Qd4 {[%emt 0:00:52]} Nxc3 {[%emt 0:02:11]} 16. Qxc3 {[%emt 0:03:32]} Qd3 {[%emt 0:04:09]} 17. Qb4 {[%emt 0:03:10]} Na6 {[%emt 0:00:32]} 18. Qe7 {[%emt 0:02:01]} Qd8 {[%emt 0:07:59]} 19. Qxd8 {[%emt 0:00:18]} Rxd8 {[%emt 0:00:01]} 20. Rfc1 {[%emt 0:02:06]} Bd7 {[%emt 0:00:21]} 21. Nd4 {[%emt 0:00:44]} Nc5 {[%emt 0:03:44]} 22. Rxc4 {[%emt 0:00:23]} Rac8 {[%emt 0:00:50]} 23. f4 {[%emt 0:02:26]} b5 {[%emt 0:02:24]} 24. Rc2 {[%emt 0:04:34]} Be8 {[%emt 0:01:11]} 25. Nxb5 {[%emt 0:04:56]} Bxb5 {[%emt 0:00:12]} 26. Rbc1 {[%emt 0:00:03]} Ba6 {[%emt 0:06:22]} 27. Rxc5 {[%emt 0:00:04]} Rxc5 {[%emt 0:00:02]} 28. Rxc5 {[%emt 0:00:06]} Rd1+ {[%emt 0:00:14]} 29. Kf2 {[%emt 0:00:03]} Rd2+ {[%emt 0:00:19]} 30. Kg1 {[%emt 0:00:25]} Rd1+ {[%emt 0:00:30]} 31. Kf2 {[%emt 0:00:03]} Rd2+ {[%emt 0:00:08]} 32. Kg1 {[%emt 0:00:04]} 1/2-1/2

[Event "FIDE Womens World Cup 2021"]
[Site "Sochi"]
[Date "2021.07.15"]
[Round "2.1"]
[White "Mammadova, Gulnar"]
[Black "Javakhishvili, Lela"]
[Result "1/2-1/2"]
[ECO "C65"]
[WhiteElo "2385"]
[BlackElo "2470"]
[Annotator "ChessBase"]
[PlyCount "71"]
[EventDate "2021.07.12"]
[EventType "k.o."]
[EventCountry "RUS"]
[SourceTitle "playchess.com"]
[Source "ChessBase"]
[SourceQuality "1"]
[TimeControl "40/5400+30:1800+30"]

1. e4 {[%emt 0:00:04]} e5 {[%emt 0:00:08]} 2. Nf3 {[%emt 0:01:55]} Nc6 {[%emt 0:00:09]} 3. Bb5 {[%emt 0:04:22]} Nf6 {[%emt 0:00:13]} 4. d3 {[%emt 0:00:59]} Bc5 {[%emt 0:00:24]} 5. c3 {[%emt 0:01:13]} d5 {[%emt 0:03:19]} 6. Qe2 {[%emt 0:06:44]} O-O {[%emt 0:02:12]} 7. h3 {[%emt 0:04:02]} a6 {[%emt 0:10:04]} 8. Ba4 {[%emt 0:01:27]} b5 {[%emt 0:02:08]} 9. Bb3 {[%emt 0:01:14]} h6 {[%emt 0:02:36]} 10. exd5 {[%emt 0:14:25]} Nxd5 {[%emt 0:01:30]} 11. Qe4 {[%emt 0:02:29]} Be6 {[%emt 0:09:27]} 12. Nxe5 {[%emt 0:03:01]} Nxe5 {[%emt 0:01:52]} 13. Qxe5 {[%emt 0:00:03]} Nb4 {[%emt 0:24:25]} 14. O-O {[%emt 0:17:51]} Nxd3 {[%emt 0:00:28]} 15. Qh5 {[%emt 0:04:37]} Bxb3 {[%emt 0:02:06]} 16. axb3 {[%emt 0:00:07]} Qf6 {[%emt 0:05:53]} 17. Be3 {[%emt 0:02:50]} Bxe3 {[%emt 0:00:49]} 18. fxe3 {[%emt 0:01:24]} Qe6 {[%emt 0:01:14]} 19. Qe2 {[%emt 0:00:10]} Nc5 {[%emt 0:03:08]} 20. b4 {[%emt 0:01:52]} Ne4 {[%emt 0:00:09]} 21. Rd1 {[%emt 0:01:32]} Rfe8 {[%emt 0:02:43]} 22. Nd2 {[%emt 0:02:18]} Nxd2 {[%emt 0:08:00]} 23. Rxd2 {[%emt 0:00:05]} Qxe3+ {[%emt 0:00:09]} 24. Qxe3 {[%emt 0:00:04]} Rxe3 {[%emt 0:00:04]} 25. Rd7 {[%emt 0:02:59]} Re2 {[%emt 0:00:32]} 26. Rf1 {[%emt 0:00:55]} f6 {[%emt 0:03:53]} 27. Rf3 {[%emt 0:02:49]} Rae8 {[%emt 0:08:49]} 28. Rxc7 {[%emt 0:01:04]} Rxb2 {[%emt 0:02:08]} 29. Rg3 {[%emt 0:01:25]} g5 {[%emt 0:00:06]} 30. Rd3 {[%emt 0:00:10]} Kf8 {[%emt 0:01:16]} 31. Rdd7 {[%emt 0:02:48]} Re1+ {[%emt 0:01:17]} 32. Kh2 {[%emt 0:00:02]} Ree2 {[%emt 0:00:11]} 33. Rd8+ {[%emt 0:00:09]} Re8 {[%emt 0:00:04]} 34. Rdd7 {[%emt 0:00:02]} Ree2 {[%emt 0:00:05]} 35. Rd8+ {[%emt 0:00:04]} Re8 {[%emt 0:00:04]} 36. Rdd7 {[%emt 0:00:03]} 1/2-1/2

[Event "FIDE Womens World Cup 2021"]
[Site "Sochi"]
[Date "2021.07.15"]
[Round "2.1"]
[White "Ordaz Valdes, Lisandra Teresa"]
[Black "Kashlinskaya, Alina"]
[Result "1/2-1/2"]
[ECO "D02"]
[WhiteElo "2369"]
[BlackElo "2488"]
[Annotator "ChessBase"]
[PlyCount "80"]
[EventDate "2021.07.12"]
[EventType "k.o."]
[EventCountry "RUS"]
[SourceTitle "playchess.com"]
[Source "ChessBase"]
[SourceQuality "1"]
[TimeControl "40/5400+30:1800+30"]

1. d4 {[%emt 0:00:06]} Nf6 {[%emt 0:00:07]} 2. Nf3 {[%emt 0:00:19]} d5 {[%emt 0:00:07]} 3. Bf4 {[%emt 0:00:14]} Bf5 {[%emt 0:00:40]} 4. e3 {[%emt 0:00:13]} e6 {[%emt 0:00:27]} 5. Bd3 {[%emt 0:00:09]} Bxd3 {[%emt 0:08:22]} 6. Qxd3 {[%emt 0:01:33]} Nbd7 {[%emt 0:02:52]} 7. O-O {[%emt 0:00:43]} Bd6 {[%emt 0:06:55]} 8. Nbd2 {[%emt 0:07:40]} O-O {[%emt 0:05:40]} 9. c3 {[%emt 0:01:53]} Qb8 {[%emt 0:07:44]} 10. b4 {[%emt 0:21:52]} c6 {[%emt 0:04:27]} 11. Bg5 {[%emt 0:04:11]} Qc7 {[%emt 0:08:51]} 12. a3 {[%emt 0:03:30]} a5 {[%emt 0:04:07]} 13. Bxf6 {[%emt 0:05:21]} Nxf6 {[%emt 0:00:23]} 14. e4 {[%emt 0:00:09]} Be7 {[%emt 0:06:19]} 15. e5 {[%emt 0:06:56]} Nd7 {[%emt 0:00:29]} 16. Nb3 {[%emt 0:01:27]} b6 {[%emt 0:08:19]} 17. bxa5 {[%emt 0:07:24]} bxa5 {[%emt 0:00:09]} 18. c4 {[%emt 0:00:07]} dxc4 {[%emt 0:03:24]} 19. Qxc4 {[%emt 0:00:15]} a4 {[%emt 0:00:15]} 20. Nbd2 {[%emt 0:03:39]} c5 {[%emt 0:00:23]} 21. Rfc1 {[%emt 0:03:18]} Qa7 {[%emt 0:01:55]} 22. dxc5 {[%emt 0:02:29]} Bxc5 {[%emt 0:02:16]} 23. Ne4 {[%emt 0:00:48]} Rfc8 {[%emt 0:03:26]} 24. Qc2 {[%emt 0:10:07]} Bxa3 {[%emt 0:03:06]} 25. Qxc8+ {[%emt 0:04:21]} Rxc8 {[%emt 0:00:11]} 26. Rxc8+ {[%emt 0:00:06]} Bf8 {[%emt 0:00:09]} 27. Rac1 {[%emt 0:09:21]} a3 {[%emt 0:02:30]} 28. R8c7 {[%emt 0:01:53]} Qa8 {[%emt 0:03:34]} 29. Rxd7 {[%emt 0:00:27]} a2 {[%emt 0:06:01]} 30. Rdd1 {[%emt 0:02:37]} Qxe4 {[%emt 0:00:05]} 31. Ra1 {[%emt 0:01:29]} Qc2 {[%emt 0:01:48]} 32. Ne1 {[%emt 0:00:45]} Qe2 {[%emt 0:01:07]} 33. Rdc1 {[%emt 0:00:55]} h6 {[%emt 0:03:06]} 34. Rc2 {[%emt 0:00:27]} Qxe5 {[%emt 0:00:32]} 35. Rcxa2 {[%emt 0:00:09]} Bc5 {[%emt 0:01:44]} 36. Nd3 {[%emt 0:00:35]} Qc3 {[%emt 0:00:49]} 37. Nxc5 {[%emt 0:00:14]} Qxc5 {[%emt 0:00:04]} 38. Ra5 {[%emt 0:00:22]} Qd4 {[%emt 0:01:14]} 39. R5a4 {[%emt 0:00:07]} Qc5 {[%emt 0:01:33]} 40. Ra5 {[%emt 0:00:08]} Qd4 {[%emt 0:00:17]} 1/2-1/2

[Event "FIDE Womens World Cup 2021"]
[Site "Sochi"]
[Date "2021.07.15"]
[Round "2.1"]
[White "Yildiz Kadioglu, Betul Cemre"]
[Black "Tan, Zhongyi"]
[Result "1/2-1/2"]
[ECO "D35"]
[WhiteElo "2362"]
[BlackElo "2511"]
[Annotator "ChessBase"]
[PlyCount "57"]
[EventDate "2021.07.12"]
[EventType "k.o."]
[EventCountry "RUS"]
[SourceTitle "playchess.com"]
[Source "ChessBase"]
[SourceQuality "1"]
[TimeControl "40/5400+30:1800+30"]

1. d4 {[%emt 0:00:03]} d5 {[%emt 0:00:07]} 2. c4 {[%emt 0:00:09]} e6 {[%emt 0:00:06]} 3. Nc3 {[%emt 0:00:07]} Nf6 {[%emt 0:00:43]} 4. cxd5 {[%emt 0:01:38]} Nxd5 {[%emt 0:00:07]} 5. Nf3 {[%emt 0:03:22]} c5 {[%emt 0:00:28]} 6. g3 {[%emt 0:09:18]} cxd4 {[%emt 0:01:53]} 7. Nxd5 {[%emt 0:03:37]} Qxd5 {[%emt 0:00:12]} 8. Qxd4 {[%emt 0:01:27]} Qxd4 {[%emt 0:00:21]} 9. Nxd4 {[%emt 0:00:02]} Bb4+ {[%emt 0:08:12]} 10. Bd2 {[%emt 0:00:19]} Bxd2+ {[%emt 0:00:06]} 11. Kxd2 {[%emt 0:00:03]} Bd7 {[%emt 0:00:28]} 12. Bg2 {[%emt 0:01:27]} Nc6 {[%emt 0:00:04]} 13. Nxc6 {[%emt 0:03:24]} Bxc6 {[%emt 0:00:04]} 14. Bxc6+ {[%emt 0:00:11]} bxc6 {[%emt 0:00:03]} 15. Rhd1 {[%emt 0:04:51]} O-O-O+ {[%emt 0:00:28]} 16. Kc3 {[%emt 0:00:52]} Kc7 {[%emt 0:00:12]} 17. b4 {[%emt 0:05:06]} a5 {[%emt 0:04:32]} 18. bxa5 {[%emt 0:08:41]} Ra8 {[%emt 0:00:19]} 19. Rd4 {[%emt 0:06:15]} Rxa5 {[%emt 0:00:07]} 20. Rad1 {[%emt 0:01:56]} Rxa2 {[%emt 0:09:58]} 21. Rd7+ {[%emt 0:00:08]} Kb6 {[%emt 0:00:28]} 22. Rb1+ {[%emt 0:00:59]} Kc5 {[%emt 0:00:47]} 23. Rc1 {[%emt 0:01:02]} Rha8 {[%emt 0:04:38]} 24. Kd3+ {[%emt 0:03:02]} Kb6 {[%emt 0:00:05]} 25. Rb1+ {[%emt 0:01:10]} Kc5 {[%emt 0:00:05]} 26. Rc1+ {[%emt 0:00:15]} Kb6 {[%emt 0:00:03]} 27. Rb1+ {[%emt 0:00:24]} Kc5 {[%emt 0:00:07]} 28. Rc1+ {[%emt 0:00:15]} Kb6 29. Ke4 1/2-1/2